[Event "Charlotte Fall GM-A 2023"]
[Site "Charlotte"]
[Date "2023.11.18"]
[Round "2.4"]
[White "Bellahcene, Bilel"]
[Black "Cruz, Cristhian"]
[Result "1/2-1/2"]
[ECO "C17"]
[WhiteElo "2502"]
[BlackElo "2498"]
[Annotator "RC"]
[PlyCount "60"]
[EventDate "2023.11.17"]
[EventType "tourn"]
[EventCountry "USA"]
[SourceTitle "playchess.com"]
[Source "ChessBase"]
[SourceQuality "1"]
[TimeControl "5400+30"]

1. e4 {[%emt 0:04:07]} e6 {[%emt 0:02:56]} 2. d4 {[%emt 0:00:05]} d5 {[%emt 0:00:16]} 3. Nc3 {[%emt 0:00:03]} Bb4 {[%emt 0:00:29]} 4. e5 {[%emt 0:00:11]} c5 {[%emt 0:00:20]} 5. Bd2 {[%emt 0:00:06]} Ne7 {[%emt 0:00:43]} 6. a3 {[%emt 0:00:03]} Bxc3 {[%emt 0:01:08]} 7. bxc3 {[%emt 0:00:04]} b6 {[%emt 0:01:42]} 8. Qg4 {[%emt 0:01:20]} O-O {[%emt 0:01:24]} 9. h4 {[%emt 0:00:52]} Nf5 10. h5 {[%emt 0:03:36]} h6 {[%emt 0:10:29]} 11. Nf3 {[%emt 0:03:55]} Qc7 {[%emt 0:12:11]} 12. Bd3 {[%emt 0:20:04]} cxd4 {[%emt 0:02:31]} 13. cxd4 {[%emt 0:00:08]} Ba6 {[%emt 0:01:21]} 14. Qf4 {[%emt 0:17:03]} Bxd3 {[%emt 0:02:13]} 15. cxd3 {[%emt 0:00:30]} Nc6 {[%emt 0:00:55]} 16. g4 {[%emt 0:03:33]} Nfe7 {[%emt 0:01:45]} 17. g5 {[%emt 0:07:35]} Nf5 {[%emt 0:05:08]} 18. gxh6 {[%emt 0:03:24]} gxh6 {[%emt 0:00:24]} 19. Rc1 {[%emt 0:01:07]} Qb7 {[%emt 0:05:58]} 20. Be3 {[%emt 0:10:40]} Nce7 {[%emt 0:11:24]} 21. Nh2 {[%emt 0:00:27]} Kh7 {[%emt 0:03:14]} 22. Ng4 {[%emt 0:00:18]} Ng8 {[%emt 0:00:10]} 23. Bd2 {[%emt 0:05:35]} Rac8 {[%emt 0:08:51]} 24. Ke2 {[%emt 0:00:06]} Rxc1 {[%emt 0:00:34]} 25. Rxc1 {[%emt 0:00:04]} Rc8 {[%emt 0:04:36]} 26. Rxc8 {[%emt 0:00:29]} Qxc8 {[%emt 0:00:05]} 27. Ne3 {[%emt 0:00:05]} Nge7 {[%emt 0:01:38]} 28. Ng4 {[%emt 0:01:45]} Ng8 {[%emt 0:00:33]} 29. Ne3 {[%emt 0:00:05]} Nge7 {[%emt 0:00:05]} 30. Ng4 {[%emt 0:00:17]} Ng8 {[%emt 0:00:06]} 1/2-1/2

[Event "Charlotte Fall GM-A 2023"]
[Site "Charlotte"]
[Date "2023.11.18"]
[Round "2.5"]
[White "Mardov, Dimitar"]
[Black "Corrales Jimenez, Fidel"]
[Result "1/2-1/2"]
[ECO "D93"]
[WhiteElo "2455"]
[BlackElo "2525"]
[Annotator "RC"]
[PlyCount "44"]
[EventDate "2023.11.17"]
[EventType "tourn"]
[EventCountry "USA"]
[SourceTitle "playchess.com"]
[Source "ChessBase"]
[SourceQuality "1"]
[TimeControl "5400+30"]

1. d4 {[%emt 0:00:02]} Nf6 {[%emt 0:06:31]} 2. c4 g6 {[%emt 0:00:08]} 3. Nc3 {[%emt 0:00:51]} d5 {[%emt 0:00:07]} 4. Bf4 {[%emt 0:00:13]} Bg7 {[%emt 0:00:15]} 5. e3 {[%emt 0:01:06]} O-O {[%emt 0:00:26]} 6. Rc1 {[%emt 0:00:21]} c6 {[%emt 0:01:21]} 7. Nf3 {[%emt 0:03:07]} Ne4 {[%emt 0:04:55]} 8. cxd5 {[%emt 0:09:30]} cxd5 {[%emt 0:01:14]} 9. Qb3 {[%emt 0:05:48]} Nxc3 {[%emt 0:01:41]} 10. Rxc3 {[%emt 0:04:16]} Nc6 {[%emt 0:09:00]} 11. Rc5 {[%emt 0:07:39]} e6 {[%emt 0:01:20]} 12. Be2 {[%emt 0:08:24]} Qb6 {[%emt 0:03:03]} 13. Qc3 {[%emt 0:06:59]} Bd7 {[%emt 0:04:11]} 14. O-O {[%emt 0:05:08]} Rfc8 {[%emt 0:00:04]} 15. Qd2 {[%emt 0:01:47]} a6 {[%emt 0:06:55]} 16. Rfc1 {[%emt 0:08:24]} Bf8 {[%emt 0:00:19]} 17. R5c2 {[%emt 0:02:27]} f6 {[%emt 0:04:18]} 18. a3 {[%emt 0:02:23]} Na5 {[%emt 0:08:13]} 19. Rxc8 {[%emt 0:01:13]} Rxc8 {[%emt 0:00:06]} 20. Rxc8 {[%emt 0:00:47]} Bxc8 {[%emt 0:00:14]} 21. Qc3 {[%emt 0:00:34]} Nc6 {[%emt 0:00:18]} 22. h4 {[%emt 0:01:37]} Bd7 {[%emt 0:00:17]} 1/2-1/2

[Event "Charlotte Fall GM-A 2023"]
[Site "Charlotte"]
[Date "2023.11.18"]
[Round "3.1"]
[White "Corrales Jimenez, Fidel"]
[Black "Sandoval Mercado, Carlos"]
[Result "1-0"]
[ECO "D36"]
[WhiteElo "2525"]
[BlackElo "2397"]
[Annotator "RC"]
[PlyCount "189"]
[EventDate "2023.11.17"]
[EventType "tourn"]
[EventCountry "USA"]
[SourceTitle "playchess.com"]
[Source "ChessBase"]
[SourceQuality "1"]
[TimeControl "5400+30"]

1. d4 {[%emt 0:08:21]} Nf6 {[%emt 0:00:06]} 2. c4 {[%emt 0:00:08]} e6 {[%emt 0:00:58]} 3. Nc3 {[%emt 0:00:24]} d5 {[%emt 0:01:00]} 4. cxd5 {[%emt 0:00:26]} exd5 {[%emt 0:00:07]} 5. Bg5 {[%emt 0:00:05]} c6 {[%emt 0:01:40]} 6. Qc2 {[%emt 0:00:33]} Be7 {[%emt 0:02:18]} 7. e3 {[%emt 0:00:06]} h6 {[%emt 0:01:08]} 8. Bxf6 {[%emt 0:00:58]} Bxf6 {[%emt 0:00:06]} 9. Bd3 {[%emt 0:00:04]} O-O {[%emt 0:02:32]} 10. Bh7+ {[%emt 0:02:21]} Kh8 {[%emt 0:00:06]} 11. Bf5 {[%emt 0:00:04]} Nd7 {[%emt 0:03:37]} 12. Nge2 {[%emt 0:01:05]} Nb6 {[%emt 0:02:19]} 13. Bxc8 {[%emt 0:02:24]} Nxc8 {[%emt 0:03:13]} 14. O-O {[%emt 0:02:34]} Nd6 {[%emt 0:00:28]} 15. Nf4 {[%emt 0:00:14]} Re8 {[%emt 0:05:39]} 16. Nd3 {[%emt 0:00:57]} g6 {[%emt 0:02:36]} 17. b4 {[%emt 0:02:02]} a6 {[%emt 0:00:34]} 18. a4 {[%emt 0:00:11]} Nc4 {[%emt 0:05:22]} 19. a5 {[%emt 0:01:11]} Bg7 {[%emt 0:05:12]} 20. Rae1 {[%emt 0:00:31]} Qg5 {[%emt 0:03:40]} 21. Na4 {[%emt 0:01:52]} Nd6 {[%emt 0:04:19]} 22. Nac5 {[%emt 0:00:46]} Re7 {[%emt 0:02:08]} 23. Qd1 {[%emt 0:02:21]} h5 {[%emt 0:11:30]} 24. h3 {[%emt 0:00:30]} Rae8 {[%emt 0:01:02]} 25. Kh1 {[%emt 0:00:07]} Ne4 {[%emt 0:11:45]} 26. Nxe4 {[%emt 0:02:41]} dxe4 {[%emt 0:01:16]} 27. Nc5 {[%emt 0:00:15]} Qd5 {[%emt 0:03:42]} 28. Qb3 {[%emt 0:03:36]} Qd6 {[%emt 0:01:59]} 29. Rd1 {[%emt 0:00:59]} Rd8 {[%emt 0:00:05]} 30. Rd2 {[%emt 0:03:10]} f5 {[%emt 0:02:20]} 31. Rfd1 {[%emt 0:00:04]} Qd5 {[%emt 0:00:05]} 32. Qxd5 {[%emt 0:00:22]} Rxd5 {[%emt 0:00:08]} 33. Na4 {[%emt 0:00:16]} Re8 {[%emt 0:04:35]} 34. Nb6 {[%emt 0:00:18]} Rd6 {[%emt 0:00:55]} 35. h4 {[%emt 0:10:12]} Bf6 {[%emt 0:01:50]} 36. g3 {[%emt 0:01:05]} Kg8 {[%emt 0:01:14]} 37. Kg2 {[%emt 0:00:42]} Red8 {[%emt 0:00:39]} 38. Rc1 {[%emt 0:00:27]} Be7 {[%emt 0:01:51]} 39. Rdc2 {[%emt 0:00:46]} Bf8 {[%emt 0:01:10]} 40. Rc4 {[%emt 0:01:40]} Rf6 {[%emt 0:02:10]} 41. Rb1 {[%emt 0:00:27]} Rfd6 {[%emt 0:00:43]} 42. Kf1 {[%emt 0:01:19]} Rf6 {[%emt 0:00:04]} 43. Ke2 {[%emt 0:00:04]} Rfd6 {[%emt 0:00:46]} 44. Kd2 {[%emt 0:00:17]} Be7 {[%emt 0:00:48]} 45. Kc3 {[%emt 0:00:10]} Bf8 {[%emt 0:02:01]} 46. Kb3 {[%emt 0:00:15]} Rf6 {[%emt 0:00:04]} 47. Rd1 {[%emt 0:04:49]} Rfd6 {[%emt 0:00:32]} 48. Rcc1 {[%emt 0:00:08]} Kh8 {[%emt 0:04:31]} 49. Kc4 {[%emt 0:00:07]} Kg8 {[%emt 0:00:18]} 50. Na4 {[%emt 0:00:07]} R6d7 {[%emt 0:01:04]} 51. Rb1 {[%emt 0:00:12]} Kf7 {[%emt 0:00:23]} 52. Rd2 {[%emt 0:01:04]} Be7 {[%emt 0:03:25]} 53. Rdb2 {[%emt 0:02:11]} Re8 {[%emt 0:00:26]} 54. Rc2 {[%emt 0:01:51]} Red8 {[%emt 0:00:31]} 55. Nc5 {[%emt 0:05:19]} Rc7 {[%emt 0:00:48]} 56. Rd2 {[%emt 0:01:03]} Bf8 {[%emt 0:00:54]} 57. Rbd1 {[%emt 0:00:20]} Be7 {[%emt 0:01:11]} 58. Rf1 {[%emt 0:03:36]} Bf8 {[%emt 0:02:24]} 59. Re2 {[%emt 0:01:23]} Bxc5 {[%emt 0:00:47]} 60. bxc5 {[%emt 0:00:12]} Ke7 {[%emt 0:00:33]} 61. f3 {[%emt 0:00:24]} exf3 {[%emt 0:00:14]} 62. Rxf3 {[%emt 0:00:03]} Rcd7 {[%emt 0:00:30]} 63. Rf1 {[%emt 0:00:08]} Re8 {[%emt 0:00:55]} 64. e4 {[%emt 0:01:33]} Kd8 {[%emt 0:00:07]} 65. e5 {[%emt 0:00:06]} Re6 {[%emt 0:00:31]} 66. Kd3 {[%emt 0:03:38]} Kc8 {[%emt 0:00:06]} 67. Ke3 {[%emt 0:00:06]} Kd8 {[%emt 0:00:01]} 68. Rd2 {[%emt 0:01:48]} Rd5 {[%emt 0:00:04]} 69. Kf4 {[%emt 0:04:49]} Rd7 {[%emt 0:02:01]} 70. d5 {[%emt 0:00:58]} cxd5 {[%emt 0:00:37]} 71. Rfd1 {[%emt 0:00:06]} Ke7 {[%emt 0:01:17]} 72. Rxd5 {[%emt 0:00:06]} Rxd5 {[%emt 0:00:00]} 73. Rxd5 {[%emt 0:00:06]} Rc6 {[%emt 0:00:00]} 74. Ke3 {[%emt 0:10:19]} Rc8 {[%emt 0:00:00]} 75. Kd4 {[%emt 0:00:05]} Rf8 {[%emt 0:01:24]} 76. Rd6 {[%emt 0:00:27]} f4 {[%emt 0:00:06]} 77. gxf4 {[%emt 0:00:05]} Rxf4+ {[%emt 0:00:04]} 78. Kd5 {[%emt 0:00:03]} Rf1 {[%emt 0:00:37]} 79. Rxg6 {[%emt 0:00:22]} Rd1+ {[%emt 0:00:01]} 80. Ke4 {[%emt 0:00:08]} Re1+ {[%emt 0:01:31]} 81. Kf5 {[%emt 0:02:57]} Rf1+ {[%emt 0:00:01]} 82. Kg5 {[%emt 0:00:05]} Re1 {[%emt 0:01:13]} 83. Kxh5 {[%emt 0:09:00]} Rxe5+ {[%emt 0:00:04]} 84. Rg5 {[%emt 0:00:03]} Re4 {[%emt 0:00:01]} 85. Rg7+ {[%emt 0:00:29]} Kf6 {[%emt 0:00:59]} 86. Rxb7 {[%emt 0:00:15]} Re5+ {[%emt 0:00:01]} 87. Kh6 {[%emt 0:00:10]} Rxc5 {[%emt 0:00:06]} 88. Rb6+ {[%emt 0:00:03]} Kf5 {[%emt 0:01:06]} 89. Rxa6 {[%emt 0:00:09]} Kg4 {[%emt 0:00:06]} 90. Kg6 {[%emt 0:03:56]} Kxh4 {[%emt 0:00:33]} 91. Kf6 {[%emt 0:00:04]} Kh5 {[%emt 0:01:22]} 92. Ra8 {[%emt 0:01:06]} Rc6+ {[%emt 0:00:22]} 93. Ke7 {[%emt 0:00:16]} Kg6 {[%emt 0:00:11]} 94. Rb8 {[%emt 0:00:19]} Kg7 {[%emt 0:01:00]} 95. Rb6 {[%emt 0:00:12]} 1-0

[Event "Charlotte Fall GM-A 2023"]
[Site "Charlotte"]
[Date "2023.11.18"]
[Round "3.2"]
[White "Cruz, Cristhian"]
[Black "Mardov, Dimitar"]
[Result "1/2-1/2"]
[ECO "E14"]
[WhiteElo "2498"]
[BlackElo "2455"]
[Annotator "RC"]
[PlyCount "177"]
[EventDate "2023.11.17"]
[EventType "tourn"]
[EventCountry "USA"]
[SourceTitle "playchess.com"]
[Source "ChessBase"]
[SourceQuality "1"]
[TimeControl "5400+30"]

1. d4 {[%emt 0:07:46]} Nf6 {[%emt 0:00:13]} 2. c4 {[%emt 0:00:23]} e6 {[%emt 0:00:04]} 3. Nf3 {[%emt 0:00:07]} d5 {[%emt 0:01:14]} 4. e3 {[%emt 0:02:09]} b6 {[%emt 0:05:29]} 5. cxd5 {[%emt 0:04:25]} exd5 {[%emt 0:00:48]} 6. Ne5 {[%emt 0:04:11]} Bb7 {[%emt 0:02:42]} 7. Bb5+ {[%emt 0:03:10]} c6 {[%emt 0:01:41]} 8. Bd3 {[%emt 0:00:12]} Bd6 {[%emt 0:02:07]} 9. Nd2 {[%emt 0:10:07]} O-O {[%emt 0:04:38]} 10. b3 {[%emt 0:01:17]} c5 {[%emt 0:10:40]} 11. Bb2 {[%emt 0:01:19]} Qe7 {[%emt 0:03:20]} 12. O-O {[%emt 0:01:39]} Nc6 {[%emt 0:02:32]} 13. Nxc6 {[%emt 0:04:36]} Bxc6 {[%emt 0:00:03]} 14. dxc5 {[%emt 0:09:08]} bxc5 {[%emt 0:01:59]} 15. Qf3 {[%emt 0:00:39]} Nd7 {[%emt 1:00:30]} 16. Qh3 {[%emt 0:08:23]} g6 {[%emt 0:00:00]} 17. e4 {[%emt 0:02:45]} Qe6 {[%emt 0:00:00]} 18. Qh6 {[%emt 0:07:23]} Be5 {[%emt 0:00:00]} 19. Nf3 {[%emt 0:12:58]} f6 {[%emt 0:00:00]} 20. exd5 {[%emt 0:04:31]} Bxd5 {[%emt 0:00:00]} 21. Rfe1 {[%emt 0:02:05]} Qg4 {[%emt 0:00:00]} 22. h3 {[%emt 0:02:08]} Qf4 {[%emt 0:00:00]} 23. Qxf4 {[%emt 0:00:16]} Bxf4 {[%emt 0:00:00]} 24. Rad1 {[%emt 0:00:45]} Nb6 {[%emt 0:00:00]} 25. Be4 {[%emt 0:01:44]} Rad8 {[%emt 0:00:00]} 26. g3 {[%emt 0:00:28]} Bc7 {[%emt 0:00:00]} 27. Rc1 {[%emt 0:02:28]} Bxe4 {[%emt 0:00:00]} 28. Rxe4 {[%emt 0:00:03]} Rd5 {[%emt 0:00:00]} 29. Kg2 {[%emt 0:01:45]} Kf7 {[%emt 0:00:00]} 30. Rc2 {[%emt 0:02:31]} Rfd8 {[%emt 0:00:00]} 31. Ba3 {[%emt 0:00:22]} Bd6 {[%emt 0:00:00]} 32. Re1 {[%emt 0:01:00]} a5 {[%emt 0:00:31]} 33. Rec1 {[%emt 0:00:19]} Rc8 {[%emt 0:00:34]} 34. Nd2 {[%emt 0:00:46]} a4 {[%emt 0:01:56]} 35. Ne4 {[%emt 0:00:40]} axb3 {[%emt 0:00:25]} 36. axb3 {[%emt 0:00:02]} Nd7 {[%emt 0:01:17]} 37. b4 {[%emt 0:01:22]} Be7 {[%emt 0:01:26]} 38. bxc5 {[%emt 0:01:10]} Rd3 {[%emt 0:01:55]} 39. Rc3 {[%emt 0:02:02]} Rxc3 {[%emt 0:00:29]} 40. Rxc3 {[%emt 0:00:09]} Rc7 {[%emt 0:02:09]} 41. Rf3 {[%emt 0:01:04]} Nxc5 {[%emt 0:01:33]} 42. Bxc5 {[%emt 0:00:23]} Bxc5 {[%emt 0:00:09]} 43. Nxf6 {[%emt 0:00:17]} Ke6 {[%emt 0:00:18]} 44. h4 {[%emt 0:00:24]} Ra7 {[%emt 0:00:58]} 45. Ne4 {[%emt 0:01:01]} Be7 {[%emt 0:00:11]} 46. Rf4 {[%emt 0:00:25]} Ra5 {[%emt 0:00:30]} 47. Rf3 {[%emt 0:00:27]} Ra4 {[%emt 0:00:31]} 48. Re3 {[%emt 0:00:07]} Kf7 {[%emt 0:00:15]} 49. f4 {[%emt 0:00:05]} h5 {[%emt 0:00:28]} 50. Re2 {[%emt 0:01:24]} Ra3 {[%emt 0:00:37]} 51. Rc2 {[%emt 0:00:17]} Re3 {[%emt 0:00:38]} 52. Ng5+ {[%emt 0:00:37]} Bxg5 {[%emt 0:00:34]} 53. hxg5 {[%emt 0:00:01]} Rd3 {[%emt 0:00:47]} 54. Kh3 {[%emt 0:00:28]} Rf3 {[%emt 0:00:23]} 55. Rc7+ {[%emt 0:00:17]} Kg8 {[%emt 0:00:09]} 56. Rc6 {[%emt 0:00:18]} Kg7 {[%emt 0:00:08]} 57. Rc7+ {[%emt 0:00:28]} Kg8 {[%emt 0:00:03]} 58. Kg2 {[%emt 0:00:33]} Rb3 {[%emt 0:02:36]} 59. Re7 {[%emt 0:00:51]} Kf8 {[%emt 0:00:00]} 60. Re5 {[%emt 0:00:03]} Kf7 {[%emt 0:00:00]} 61. Kf2 {[%emt 0:00:05]} Ra3 {[%emt 0:00:00]} 62. Re3 {[%emt 0:00:06]} Ra4 {[%emt 0:00:00]} 63. Kf3 {[%emt 0:00:06]} Rb4 {[%emt 0:00:00]} 64. Rd3 {[%emt 0:00:19]} Ke6 {[%emt 0:00:00]} 65. Ra3 {[%emt 0:00:39]} Kf7 {[%emt 0:00:13]} 66. Ke3 {[%emt 0:00:25]} Rc4 {[%emt 0:00:23]} 67. Ra7+ {[%emt 0:00:29]} Kf8 {[%emt 0:00:30]} 68. Rd7 {[%emt 0:00:44]} Ra4 {[%emt 0:00:30]} 69. Rd4 {[%emt 0:01:07]} Ra3+ {[%emt 0:00:36]} 70. Rd3 {[%emt 0:01:29]} Ra4 {[%emt 0:00:07]} 71. Kf3 {[%emt 0:00:14]} Ke7 {[%emt 0:00:27]} 72. g4 {[%emt 0:00:15]} hxg4+ {[%emt 0:00:08]} 73. Kxg4 {[%emt 0:00:01]} Rb4 {[%emt 0:00:23]} 74. Rh3 {[%emt 0:00:18]} Kf8 {[%emt 0:00:19]} 75. Rh7 {[%emt 0:00:06]} Rb3 {[%emt 0:00:10]} 76. Rd7 {[%emt 0:00:17]} Rc3 {[%emt 0:00:13]} 77. Rb7 {[%emt 0:00:12]} Ra3 {[%emt 0:00:05]} 78. Rb4 {[%emt 0:00:05]} Rc3 {[%emt 0:00:51]} 79. f5 {[%emt 0:00:41]} gxf5+ {[%emt 0:00:59]} 80. Kh5 {[%emt 0:00:08]} Rc6 {[%emt 0:00:56]} 81. g6 {[%emt 0:01:51]} Rc1 {[%emt 0:00:49]} 82. Kh6 {[%emt 0:00:20]} Rh1+ {[%emt 0:00:17]} 83. Kg5 {[%emt 0:00:02]} Rc1 {[%emt 0:00:28]} 84. Rh4 {[%emt 0:01:33]} Kg7 {[%emt 0:00:26]} 85. Rh7+ {[%emt 0:00:05]} Kg8 {[%emt 0:00:04]} 86. Rh2 {[%emt 0:00:26]} Kg7 {[%emt 0:00:16]} 87. Rh7+ {[%emt 0:00:07]} Kg8 {[%emt 0:00:03]} 88. Rh2 {[%emt 0:00:37]} Kg7 {[%emt 0:00:04]} 89. Rh7+ {[%emt 0:00:06]} 1/2-1/2

[Event "Charlotte Fall GM-A 2023"]
[Site "Charlotte"]
[Date "2023.11.18"]
[Round "3.3"]
[White "Siddharth, Jagadeesh"]
[Black "Bellahcene, Bilel"]
[Result "*"]
[ECO "B33"]
[WhiteElo "2438"]
[BlackElo "2502"]
[Annotator "RC"]
[PlyCount "40"]
[EventDate "2023.11.17"]
[EventType "tourn"]
[EventCountry "USA"]
[SourceTitle "playchess.com"]
[Source "ChessBase"]
[SourceQuality "1"]
[TimeControl "5400+30"]

1. e4 {[%emt 0:05:21]} c5 {[%emt 0:10:09]} 2. Nf3 {[%emt 0:00:30]} Nc6 {[%emt 0:00:06]} 3. d4 {[%emt 0:00:00]} cxd4 {[%emt 0:00:12]} 4. Nxd4 {[%emt 0:00:00]} Nf6 {[%emt 0:00:03]} 5. Nc3 {[%emt 0:00:00]} e5 {[%emt 0:00:05]} 6. Ndb5 {[%emt 0:00:00]} d6 {[%emt 0:00:03]} 7. Bg5 {[%emt 0:00:00]} a6 {[%emt 0:00:02]} 8. Na3 {[%emt 0:00:00]} b5 {[%emt 0:00:02]} 9. Nab1 {[%emt 0:00:00]} Be7 {[%emt 0:00:43]} 10. Bxf6 {[%emt 0:00:00]} Bxf6 {[%emt 0:00:02]} 11. a4 {[%emt 0:05:00]} b4 {[%emt 0:00:01]} 12. Nd5 {[%emt 0:00:00]} O-O {[%emt 0:00:18]} 13. Bc4 {[%emt 0:00:00]} Bg5 {[%emt 0:01:51]} 14. O-O {[%emt 0:00:00]} Rb8 {[%emt 0:01:14]} 15. Qd3 {[%emt 0:00:00]} a5 {[%emt 0:00:21]} 16. Nd2 {[%emt 0:00:00]} Ne7 {[%emt 1:23:18]} 17. Nf3 {[%emt 0:00:00]} Nxd5 {[%emt 0:00:00]} 18. Bxd5 {[%emt 0:00:00]} Be7 {[%emt 0:00:00]} 19. c4 {[%emt 0:00:00]} bxc3 {[%emt 0:01:30]} 20. Qxc3 {[%emt 0:09:30]} Qb6 {[%emt 0:00:00]} *

[Event "Charlotte Fall GM-A 2023"]
[Site "Charlotte"]
[Date "2023.11.18"]
[Round "3.4"]
[White "Woodward, Andy"]
[Black "Gauri, Shankar"]
[Result "1/2-1/2"]
[ECO "E73"]
[WhiteElo "2473"]
[BlackElo "2351"]
[Annotator "RC"]
[PlyCount "55"]
[EventDate "2023.11.17"]
[EventType "tourn"]
[EventCountry "USA"]
[SourceTitle "playchess.com"]
[Source "ChessBase"]
[SourceQuality "1"]
[TimeControl "5400+30"]

1. d4 {[%emt 0:03:13]} Nf6 {[%emt 0:00:03]} 2. c4 {[%emt 0:00:09]} g6 {[%emt 0:00:11]} 3. Nc3 {[%emt 0:00:12]} Bg7 {[%emt 0:00:08]} 4. e4 {[%emt 0:00:32]} d6 {[%emt 0:00:14]} 5. Be2 {[%emt 0:00:11]} O-O {[%emt 0:00:24]} 6. Be3 {[%emt 0:00:08]} e5 {[%emt 0:00:32]} 7. d5 {[%emt 0:00:17]} Na6 {[%emt 0:00:43]} 8. h4 {[%emt 0:00:32]} Nc5 {[%emt 0:02:52]} 9. Qc2 {[%emt 0:00:53]} c6 {[%emt 0:01:14]} 10. f3 {[%emt 0:05:31]} cxd5 {[%emt 0:02:14]} 11. cxd5 {[%emt 0:00:35]} Nh5 {[%emt 0:02:02]} 12. b4 {[%emt 0:04:25]} Na6 {[%emt 0:08:38]} 13. Bxa6 {[%emt 0:38:29]} bxa6 {[%emt 0:00:08]} 14. g4 {[%emt 0:00:43]} Nf4 {[%emt 0:00:37]} 15. h5 {[%emt 0:00:38]} Bd7 {[%emt 0:04:07]} 16. Qh2 {[%emt 0:13:07]} h6 {[%emt 0:06:15]} 17. Nge2 {[%emt 0:00:50]} Rc8 {[%emt 0:09:00]} 18. O-O {[%emt 0:05:33]} Rc4 {[%emt 0:06:34]} 19. Rac1 {[%emt 0:04:45]} Qf6 {[%emt 0:04:50]} 20. Nb1 {[%emt 0:01:24]} Rxc1 {[%emt 0:10:56]} 21. Rxc1 {[%emt 0:01:44]} Nd3 {[%emt 0:00:02]} 22. Rf1 {[%emt 0:00:26]} Rc8 {[%emt 0:06:01]} 23. hxg6 {[%emt 0:01:52]} fxg6 {[%emt 0:01:28]} 24. Nbc3 {[%emt 0:03:16]} Nf4 {[%emt 0:01:23]} 25. Rc1 {[%emt 0:00:41]} Nd3 {[%emt 0:02:23]} 26. Rf1 {[%emt 0:00:39]} Nf4 {[%emt 0:00:25]} 27. Rc1 {[%emt 0:00:18]} Nd3 {[%emt 0:13:23]} 28. Rf1 {[%emt 0:13:27]} 1/2-1/2

[Event "Charlotte Fall GM-A 2023"]
[Site "Charlotte"]
[Date "2023.11.18"]
[Round "3.5"]
[White "Aarav Dengla"]
[Black "Chen, Ryo"]
[Result "1-0"]
[ECO "B62"]
[WhiteElo "2391"]
[BlackElo "2367"]
[Annotator "RC"]
[PlyCount "149"]
[EventDate "2023.11.17"]
[EventType "tourn"]
[EventCountry "USA"]
[SourceTitle "playchess.com"]
[Source "ChessBase"]
[SourceQuality "1"]
[TimeControl "5400+30"]

1. e4 {[%emt 0:00:02]} c5 {[%emt 0:00:01]} 2. Nf3 {[%emt 0:00:05]} d6 {[%emt 0:00:07]} 3. d4 {[%emt 0:00:11]} cxd4 {[%emt 0:00:08]} 4. Nxd4 {[%emt 0:00:05]} Nf6 {[%emt 0:00:11]} 5. Nc3 {[%emt 0:00:01]} Nc6 {[%emt 0:00:07]} 6. Bg5 {[%emt 0:00:06]} e6 {[%emt 0:00:29]} 7. Qd3 {[%emt 0:00:06]} Bd7 {[%emt 0:01:38]} 8. O-O-O {[%emt 0:00:09]} a6 {[%emt 0:37:42]} 9. f4 {[%emt 0:00:09]} h6 {[%emt 0:09:21]} 10. Bh4 {[%emt 0:00:28]} Be7 {[%emt 0:03:28]} 11. Nf3 {[%emt 0:00:12]} g5 {[%emt 0:04:23]} 12. fxg5 {[%emt 0:05:10]} Ng4 {[%emt 0:38:55]} 13. Qd2 {[%emt 0:29:27]} Nge5 {[%emt 0:00:00]} 14. Bg3 {[%emt 0:10:26]} hxg5 {[%emt 0:00:00]} 15. Nxe5 {[%emt 0:05:34]} Nxe5 {[%emt 0:00:00]} 16. Bd3 {[%emt 0:13:49]} Qa5 {[%emt 0:00:00]} 17. Kb1 {[%emt 0:09:06]} Bc6 {[%emt 0:00:00]} 18. Rhf1 {[%emt 0:03:45]} O-O-O {[%emt 0:00:00]} 19. Qf2 {[%emt 0:08:54]} Nxd3 {[%emt 0:00:00]} 20. cxd3 {[%emt 0:03:05]} f5 {[%emt 0:00:00]} 21. exf5 {[%emt 0:01:52]} exf5 {[%emt 0:00:00]} 22. Qxf5+ {[%emt 0:00:53]} Qxf5 {[%emt 0:00:00]} 23. Rxf5 {[%emt 0:00:02]} Rdf8 {[%emt 0:00:00]} 24. Nd5 {[%emt 0:01:39]} Bd8 {[%emt 0:00:00]} 25. Rdf1 {[%emt 0:03:40]} Rxf5 {[%emt 0:00:00]} 26. Rxf5 {[%emt 0:00:02]} Re8 {[%emt 0:00:00]} 27. Nc3 {[%emt 0:00:49]} Kd7 {[%emt 0:01:29]} 28. Rf2 {[%emt 0:01:32]} d5 {[%emt 0:04:14]} 29. Kc2 {[%emt 0:02:05]} Bb6 {[%emt 0:01:21]} 30. Rf7+ {[%emt 0:00:29]} Ke6 {[%emt 0:00:48]} 31. Rf1 {[%emt 0:00:25]} Kd7 {[%emt 0:00:30]} 32. Rf7+ {[%emt 0:00:57]} Ke6 {[%emt 0:00:05]} 33. Rf1 {[%emt 0:00:01]} Kd7 {[%emt 0:00:19]} 34. Rf6 {[%emt 0:01:03]} Bc5 {[%emt 0:01:16]} 35. Rf5 {[%emt 0:00:33]} g4 {[%emt 0:00:38]} 36. Rg5 {[%emt 0:00:47]} b5 {[%emt 0:00:44]} 37. a3 {[%emt 0:00:31]} a5 {[%emt 0:00:18]} 38. Rg7+ {[%emt 0:00:30]} Re7 {[%emt 0:00:16]} 39. Rxe7+ {[%emt 0:00:28]} Bxe7 {[%emt 0:00:42]} 40. Ne2 {[%emt 0:00:26]} Bf6 {[%emt 0:00:30]} 41. d4 {[%emt 0:00:28]} b4 {[%emt 0:00:21]} 42. axb4 {[%emt 0:00:30]} axb4 {[%emt 0:00:01]} 43. Be5 {[%emt 0:00:17]} Bg5 {[%emt 0:00:14]} 44. Kb3 {[%emt 0:00:51]} Bb5 {[%emt 0:00:38]} 45. Ng3 {[%emt 0:00:42]} Bd2 {[%emt 0:00:30]} 46. Kc2 {[%emt 0:00:09]} Be1 {[%emt 0:00:32]} 47. Nh5 {[%emt 0:00:17]} Bf1 {[%emt 0:01:10]} 48. g3 {[%emt 0:00:43]} Kc6 {[%emt 0:00:44]} 49. Kd1 {[%emt 0:00:29]} Bf2 {[%emt 0:00:03]} 50. Nf6 {[%emt 0:00:44]} Bg1 {[%emt 0:01:37]} 51. Ke1 {[%emt 0:00:36]} Bd3 {[%emt 0:00:00]} 52. Nxg4 {[%emt 0:00:33]} Kb5 {[%emt 0:00:17]} 53. Kd2 {[%emt 0:00:23]} Bf5 {[%emt 0:00:25]} 54. Ne3 {[%emt 0:00:18]} Be4 {[%emt 0:00:21]} 55. g4 {[%emt 0:00:30]} Ka4 {[%emt 0:00:15]} 56. h4 {[%emt 0:00:34]} Bf2 {[%emt 0:00:41]} 57. h5 {[%emt 0:00:34]} Bh4 {[%emt 0:00:17]} 58. Ke2 {[%emt 0:00:35]} Kb3 {[%emt 0:00:30]} 59. h6 {[%emt 0:00:34]} Bg5 {[%emt 0:00:46]} 60. Nxd5 {[%emt 0:00:25]} Bxh6 {[%emt 0:00:17]} 61. Nf6 {[%emt 0:00:13]} Bc6 {[%emt 0:00:36]} 62. d5 {[%emt 0:00:19]} Bb5+ {[%emt 0:00:20]} 63. Kd1 {[%emt 0:00:44]} Kc4 {[%emt 0:00:36]} 64. d6 {[%emt 0:00:53]} Bg5 {[%emt 0:00:21]} 65. Nh7 {[%emt 0:00:22]} Bd8 {[%emt 0:01:13]} 66. Bf6 {[%emt 0:00:15]} Bb6 {[%emt 0:00:11]} 67. Nf8 {[%emt 0:00:07]} Bc6 {[%emt 0:01:24]} 68. g5 {[%emt 0:00:46]} Kd3 {[%emt 0:00:00]} 69. d7 {[%emt 0:00:17]} Bf3+ {[%emt 0:00:27]} 70. Kc1 {[%emt 0:00:24]} Bg4 {[%emt 0:00:26]} 71. g6 {[%emt 0:00:28]} Bf5 {[%emt 0:00:24]} 72. d8=Q+ {[%emt 0:00:19]} Bxd8 {[%emt 0:00:06]} 73. Bxd8 {[%emt 0:00:04]} Be4 {[%emt 0:00:15]} 74. g7 {[%emt 0:00:14]} Bd5 {[%emt 0:00:05]} 75. Nd7 {[%emt 0:00:02]} 1-0